bitfinex/quotes_BTCUSD_20241013
["timestamp","ask_amount","ask_price","bid_price","bid_amount"]
[1728779830227,0.01764119,63357.0,63356.0,0.19947461]
[1728779830451,0.04236915,63357.0,63356.0,0.18763196]
[1728779830848,0.04236915,63357.0,63356.0,0.18763237]
[1728779831068,0.04236915,63357.0,63356.0,0.28575168]
[1728779831337,0.04236915,63357.0,63356.0,0.27784321]
[1728779831811,0.02754896,63357.0,63356.0,0.27784321]
[1728779832031,0.02754896,63357.0,63356.0,0.01694311]
[1728779832970,0.25998396,63357.0,63356.0,0.01494311]
[1728779833190,0.26098396,63357.0,63356.0,0.01694311]
[1728779833408,0.30719805,63357.0,63356.0,0.0014465]
[1728779833883,0.30919805,63357.0,63356.0,0.0034465]
[1728779834312,0.30819805,63357.0,63356.0,0.0034465]
[1728779834524,0.26098396,63357.0,63356.0,0.0034465]
[1728779834739,0.3318051,63357.0,63356.0,0.0034465]
[1728779834964,0.34660485,63357.0,63356.0,0.0034465]
[1728779835395,0.27578371,63357.0,63356.0,0.0034465]
[1728779835604,0.34760485,63357.0,63356.0,0.0034465]
[1728779836491,0.34775006,63357.0,63356.0,0.0034465]
[1728779836724,0.45147769,63357.0,63356.0,0.0034465]
[1728779836939,0.54609949,63357.0,63356.0,0.0034465]
[1728779837427,0.45147769,63357.0,63356.0,0.0034465]
[1728779837620,0.52137153,63357.0,63356.0,0.0034465]
[1728779838096,0.42674973,63357.0,63356.0,0.0034465]
[1728779838316,0.08960837,63357.0,63356.0,0.10156581]
[1728779838755,0.08960837,63357.0,63356.0,0.11304841]
[1728779840074,0.08960837,63357.0,63356.0,0.27088641]
[1728779840304,0.08960837,63357.0,63356.0,0.11304841]
[1728779840950,0.07480862,63357.0,63356.0,0.11304841]
[1728779842346,0.003821,63357.0,63356.0,0.11304841]
[1728779844547,0.05112746,63357.0,63356.0,0.11304841]
[1728779844742,0.05112746,63357.0,63356.0,0.0149291]
[1728779845006,0.05112726,63357.0,63356.0,0.0149291]
[1728779845936,0.06591022,63357.0,63356.0,0.0149291]
[1728779848917,0.06591191,63357.0,63356.0,0.0149291]
[1728779849358,0.01860565,63357.0,63356.0,0.1727671]
[1728779849806,0.01860565,63357.0,63356.0,0.0149291]
[1728779850252,0.01860565,63357.0,63356.0,0.27088641]
[1728779850481,0.04333471,63357.0,63356.0,0.27088641]
[1728779855740,0.04333471,63357.0,63356.0,0.36398641]
[1728779855973,0.04333471,63357.0,63356.0,0.53790572]
[1728779856204,0.04333471,63357.0,63356.0,0.72707265]
[1728779856419,0.01860565,63357.0,63356.0,0.73498129]
[1728779856909,0.01560565,63357.0,63356.0,0.73298129]
[1728779857133,0.01660565,63357.0,63356.0,0.73498129]
[1728779857357,0.01661375,63357.0,63356.0,0.73498129]
[1728779857576,0.01661375,63357.0,63356.0,0.73498002]
[1728779857577,0.001821,63357.0,63356.0,0.73498002]
[1728779857812,0.01661375,63357.0,63356.0,0.73498002]
[1728779858469,0.01661375,63357.0,63356.0,0.73798002]
[1728779858470,0.001821,63357.0,63356.0,0.73798002]
[1728779858905,0.001821,63357.0,63356.0,0.74398002]
[1728779859135,0.002821,63357.0,63356.0,0.74898002]
[1728779860909,0.02754647,63357.0,63356.0,0.74898002]
[1728779862644,0.02554647,63357.0,63356.0,0.73298002]
[1728779863100,0.02554647,63357.0,63356.0,0.74798002]
[1728779863101,0.02754647,63357.0,63356.0,0.74798002]
[1728779863319,0.02654647,63357.0,63356.0,0.73798005]
[1728779863538,0.02554647,63357.0,63356.0,0.73298005]
[1728779863761,0.02654647,63357.0,63356.0,0.74398005]
[1728779864920,0.02754647,63357.0,63356.0,0.74898005]
[1728779866923,0.02754647,63357.0,63356.0,0.73612973]
[1728779867197,0.02754647,63357.0,63356.0,0.74898008]
[1728779867419,0.002821,63357.0,63356.0,0.74898008]
[1728779870685,0.02754646,63357.0,63356.0,0.74898008]
[1728779872879,0.02754646,63357.0,63356.0,0.76440278]
[1728779877235,0.04233289,63357.0,63356.0,0.76440278]
[1728779877446,0.002821,63357.0,63356.0,0.76440278]
[1728779877801,0.002821,63357.0,63356.0,0.75155243]
[1728779878019,0.002821,63357.0,63356.0,0.76440291]
[1728779878448,0.01760988,63357.0,63356.0,0.76440291]
[1728779880579,0.04233586,63357.0,63356.0,0.76440291]
[1728779886991,0.04233586,63357.0,63356.0,0.6662836]
[1728779890559,0.04233586,63357.0,63356.0,0.6508609]
[1728779891464,0.04233586,63357.0,63356.0,0.65086083]
[1728779893005,0.01760988,63357.0,63356.0,0.65086083]
[1728779895039,0.01764636,63357.0,63356.0,0.65086083]
[1728779895946,0.04237269,63357.0,63356.0,0.65086083]
[1728779896865,0.04237269,63357.0,63356.0,0.65380817]
[1728779897285,0.04237269,63357.0,63356.0,0.66565867]
[1728779897498,0.01764636,63357.0,63356.0,0.66565867]
[1728779897754,0.28466992,63368.0,63356.0,0.51770552]
[1728779897974,0.23730986,63368.0,63367.0,0.15781]
[1728779898186,0.23730986,63368.0,63367.0,0.16275246]
[1728779898426,0.04736006,63369.0,63368.0,0.157808]
[1728779898850,0.04736006,63369.0,63368.0,0.17408605]
[1728779899331,0.0710401,63370.0,63369.0,0.157805]
[1728779899551,0.0710401,63370.0,63369.0,0.1627474]
[1728779899771,0.0710401,63370.0,63369.0,0.17408039]
[1728779899987,0.1653401,63371.0,63369.0,0.17408039]
[1728779900195,0.0943,63371.0,63370.0,0.0049424]
[1728779900422,0.26693206,63371.0,63370.0,0.0049424]
[1728779900643,0.38639699,63371.0,63370.0,0.01627272]
[1728779901066,0.38639699,63371.0,63370.0,0.17407572]
[1728779901279,0.41009833,63371.0,63370.0,0.17407572]
[1728779901483,0.41009833,63371.0,63370.0,0.01627272]
[1728779902172,0.41009833,63371.0,63370.0,0.01133032]
[1728779902422,0.29159163,63371.0,63370.0,0.01627277]
[1728779902649,0.29159163,63371.0,63370.0,0.02127277]
[1728779903119,0.29159163,63371.0,63370.0,0.02227277]
[1728779904694,0.29159163,63371.0,63370.0,0.01094245]
[1728779904921,0.29159163,63371.0,63370.0,0.02227277]
[1728779905589,0.29172469,63371.0,63370.0,0.02227277]
[1728779905799,0.29172469,63371.0,63370.0,0.01733032]
[1728779906016,0.29172469,63371.0,63370.0,0.02227277]
[1728779907771,0.44952469,63371.0,63370.0,0.02227277]
[1728779907988,0.42479999,63371.0,63370.0,0.02227277]
[1728779908462,0.42479999,63371.0,63370.0,0.01094245]
[1728779908723,0.42479999,63371.0,63370.0,0.02226064]
[1728779908953,0.42479999,63371.0,63370.0,0.006]
[1728779908954,0.64211857,63371.0,63370.0,0.006]
[1728779909169,0.64210703,63371.0,63370.0,0.006]
[1728779909398,0.49979999,63371.0,63370.0,0.006]
[1728779910253,0.64209104,63371.0,63370.0,0.006]
[1728779910467,0.49979999,63371.0,63370.0,0.006]
[1728779911115,0.52452558,63371.0,63370.0,0.006]
[1728779912921,0.66763763,63371.0,63370.0,0.006]
[1728779913401,0.52534658,63371.0,63370.0,0.006]
[1728779914978,0.36709656,63371.0,63363.0,0.157819]
[1728779915184,0.09484026,63365.0,63364.0,0.00494281]
[1728779915390,0.09484026,63365.0,63364.0,0.01627701]
[1728779915603,0.09484026,63365.0,63364.0,0.00494281]
[1728779916035,0.09484026,63365.0,63364.0,0.17409501]
[1728779916244,0.09484026,63365.0,63364.0,0.17409498]
[1728779916923,0.26709023,63365.0,63364.0,0.17409498]
[1728779917345,0.26809023,63365.0,63364.0,0.18009498]
[1728779917551,0.26809023,63365.0,63364.0,0.18209498]
[1728779917970,0.26809023,63365.0,63364.0,0.18209501]
[1728779919758,0.26803879,63365.0,63364.0,0.18209501]
[1728779920393,0.26803879,63365.0,63364.0,0.1771522]
[1728779920612,0.26803879,63365.0,63364.0,0.18209502]
[1728779921708,0.17321747,63365.0,63364.0,0.18209502]
[1728779921943,0.26803879,63365.0,63364.0,0.18209502]
[1728779924003,0.17321747,63365.0,63364.0,0.18209502]
[1728779924225,0.17323658,63365.0,63364.0,0.18209502]
[1728779924457,0.001,63365.0,63364.0,0.18209502]
[1728779924717,0.07210665,63365.0,63364.0,0.18209502]
[1728779925149,0.001,63365.0,63364.0,0.18209502]
[1728779925937,0.07210638,63365.0,63364.0,0.18209502]
[1728779926478,0.001,63365.0,63364.0,0.18209502]
[1728779927488,0.07210583,63365.0,63364.0,0.18209502]
[1728779927708,0.07210583,63365.0,63364.0,0.18209491]
[1728779928139,0.001,63365.0,63364.0,0.18209491]
[1728779930319,0.07210466,63365.0,63364.0,0.18209491]
[1728779931211,0.07210466,63365.0,63364.0,0.1771522]
[1728779931421,0.07210466,63365.0,63364.0,0.18209491]
[1728779932097,0.001,63365.0,63364.0,0.35739491]
[1728779932321,0.04840278,63365.0,63364.0,0.35739491]
[1728779933881,0.04840317,63365.0,63364.0,0.35739491]
[1728779934786,0.04840317,63365.0,63364.0,0.45551422]
[1728779935297,0.04840317,63365.0,63364.0,0.4555141]
[1728779935735,0.07312882,63365.0,63364.0,0.4555141]
[1728779936179,0.02572565,63365.0,63364.0,0.4555141]
[1728779936394,0.02572565,63365.0,63364.0,0.46342215]
[1728779936603,0.07312882,63365.0,63364.0,0.4555141]
[1728779938430,0.02572565,63365.0,63364.0,0.46342213]
[1728779938875,0.001821,63365.0,63364.0,0.46342213]
[1728779941376,0.001821,63365.0,63364.0,0.46342195]
[1728779941799,0.02654646,63365.0,63364.0,0.46342195]
[1728779943914,0.02654646,63365.0,63364.0,0.46381195]
[1728779944347,0.02654646,63365.0,63364.0,0.36569264]
[1728779944570,0.02654646,63365.0,63364.0,0.46381195]
[1728779945017,0.02654646,63365.0,63364.0,0.46381209]
[1728779945301,0.02654646,63365.0,63364.0,0.28060404]
[1728779945523,0.04136227,63365.0,63364.0,0.28060404]
[1728779945979,0.08876544,63365.0,63364.0,0.28060404]
[1728779947554,0.06403998,63365.0,63364.0,0.28060404]
[1728779949955,0.01663681,63365.0,63364.0,0.28060404]
[1728779950711,0.08877447,63365.0,63364.0,0.28060404]
[1728779951372,0.04136268,63365.0,63364.0,0.28060404]
[1728779951581,0.08877525,63365.0,63364.0,0.28060404]
[1728779952220,0.08877602,63365.0,63364.0,0.28060404]
[1728779952636,0.02654687,63365.0,63364.0,0.28060404]
[1728779954421,0.07396203,63365.0,63364.0,0.28060404]
[1728779955082,0.07396203,63365.0,63364.0,0.28851213]
[1728779956178,0.07396153,63365.0,63364.0,0.28851213]
[1728779956615,0.07396153,63365.0,63364.0,0.38311213]
[1728779956996,0.02654687,63365.0,63364.0,0.46001213]
[1728779957562,0.001821,63365.0,63364.0,0.46001213]
[1728779960507,0.02654613,63365.0,63364.0,0.46001213]
[1728779960995,0.02654613,63365.0,63364.0,0.46989692]
[1728779961658,0.02654613,63365.0,63364.0,0.46001213]
[1728779962105,0.02654613,63365.0,63364.0,0.46989678]
[1728779963597,0.02654613,63365.0,63364.0,0.46789678]
[1728779963820,0.02654613,63365.0,63364.0,0.46689678]
[1728779964057,0.02654613,63365.0,63364.0,0.47689678]
[1728779964297,0.02754613,63365.0,63364.0,0.47689678]
[1728779965009,0.02654613,63365.0,63364.0,0.47189678]
[1728779965237,0.02754613,63365.0,63364.0,0.47889678]
[1728779967550,0.002821,63365.0,63364.0,0.47889678]
[1728779970545,0.02754583,63365.0,63364.0,0.47889678]
[1728779973808,0.02754583,63365.0,63364.0,0.47889629]
[1728779974034,0.02754583,63365.0,63364.0,0.38077698]
[1728779974293,0.02754583,63365.0,63364.0,0.47889629]
[1728779974752,0.02754583,63365.0,63364.0,0.4690116]
[1728779974975,0.02554583,63365.0,63364.0,0.4520116]
[1728779975200,0.02554583,63365.0,63364.0,0.4540116]
[1728779975201,0.02654583,63365.0,63364.0,0.4540116]
[1728779975440,0.02654583,63365.0,63364.0,0.18439229]
[1728779975660,0.07295394,63365.0,63364.0,0.18439229]
[1728779976175,0.07395394,63365.0,63364.0,0.19139229]
[1728779976375,0.02654583,63365.0,63364.0,0.03357429]
[1728779976609,0.02654583,63365.0,63364.0,0.02366654]
[1728779976610,0.27917706,63365.0,63364.0,0.02366654]
[1728779976820,0.4464365,63365.0,63364.0,0.02866654]
[1728779977050,0.4454365,63365.0,63364.0,0.01666654]
[1728779977501,0.26389667,63365.0,63364.0,0.02266654]
[1728779977722,0.26289667,63365.0,63364.0,0.01666654]
[1728779978169,0.26289667,63365.0,63364.0,0.0176671]
[1728779978382,0.26289667,63365.0,63364.0,0.0166671]
[1728779978808,0.26289667,63365.0,63364.0,0.0186671]
[1728779979050,0.07193516,63365.0,63364.0,0.0186671]
[1728779979281,0.07193516,63365.0,63364.0,0.0166671]
[1728779979501,0.002821,63365.0,63364.0,0.0166671]
[1728779979728,0.002821,63365.0,63364.0,0.0176671]
[1728779980653,0.02754713,63365.0,63364.0,0.0176671]
[1728779981311,0.19468523,63365.0,63364.0,0.0176671]
[1728779981526,0.02754713,63365.0,63364.0,0.0176671]
[1728779981741,0.09865127,63365.0,63364.0,0.0176671]
[1728779982402,0.09865069,63365.0,63364.0,0.0176671]
[1728779982865,0.02754713,63365.0,63364.0,0.0176671]
[1728779984016,0.09864561,63365.0,63364.0,0.0176671]
[1728779984253,0.02754713,63365.0,63364.0,0.0176671]
[1728779984706,0.09864267,63365.0,63364.0,0.0176671]
[1728779984940,0.02754713,63365.0,63364.0,0.0176671]
[1728779985401,0.0986418,63365.0,63364.0,0.0176671]
[1728779985635,0.0986418,63365.0,63364.0,0.1170671]
[1728779985865,0.0986418,63365.0,63364.0,0.2748851]
[1728779986101,0.02754713,63365.0,63364.0,0.2748851]
[1728779986582,0.07494067,63365.0,63364.0,0.2748851]
[1728779987457,0.05021454,63365.0,63364.0,0.2748851]
[1728779988334,0.002821,63365.0,63364.0,0.2748851]
[1728779988765,0.0502141,63365.0,63364.0,0.2748851]
[1728779989289,0.002821,63365.0,63364.0,0.2699422]
[1728779989507,0.002821,63365.0,63364.0,0.27488496]
[1728779990623,0.07493867,63365.0,63364.0,0.27488496]
[1728779991063,0.02754672,63365.0,63364.0,0.17548496]
[1728779991306,0.09863635,63365.0,63364.0,0.17548496]
[1728779991525,0.02754672,63365.0,63364.0,0.17548496]
[1728779991998,0.09863635,63365.0,63364.0,0.17548496]
[1728779992677,0.02754672,63365.0,63364.0,0.17548496]
[1728779992911,0.09863635,63365.0,63364.0,0.17548496]
[1728779994009,0.09863635,63365.0,63364.0,0.17548507]
[1728779995651,0.02754672,63365.0,63364.0,0.17548507]
[1728779997623,0.002821,63365.0,63364.0,0.17548507]
[1728779999563,0.05020577,63365.0,63364.0,0.17548507]
[1728780000470,0.07493146,63365.0,63364.0,0.34438507]
[1728780000708,0.02754669,63365.0,63364.0,0.34438507]
[1728780000944,0.02754669,63365.0,63364.0,0.35229318]
[1728780001621,0.02554669,63365.0,63364.0,0.35229318]
[1728780001832,0.02554669,63365.0,63364.0,0.35729318]
[1728780002137,0.02654669,63365.0,63364.0,0.35729318]
[1728780002338,0.02654669,63365.0,63364.0,0.35629318]
[1728780002835,0.02754669,63365.0,63364.0,0.54851719]
[1728780003095,0.02754669,63365.0,63364.0,0.55840162]
[1728780003548,0.02754669,63365.0,63364.0,0.57023628]
[1728780003989,0.02654669,63365.0,63364.0,0.56223628]
[1728780004202,0.02654669,63365.0,63364.0,0.55040162]
[1728780004414,0.02754669,63365.0,63364.0,0.56440162]
[1728780004679,0.02654669,63365.0,63364.0,0.55940162]
[1728780004911,0.02754669,63365.0,63364.0,0.56440162]
[1728780005350,0.02654669,63365.0,63364.0,0.55940162]
[1728780005781,0.02754669,63365.0,63364.0,0.56540162]
[1728780006046,0.02754669,63365.0,63364.0,0.54266621]
[1728780006258,0.02754669,63365.0,63364.0,0.56539948]
[1728780007589,0.002821,63365.0,63364.0,0.58122794]
[1728780008683,0.002821,63365.0,63364.0,0.56539948]
[1728780012040,0.02754347,63365.0,63364.0,0.56539948]
[1728780016431,0.002821,63365.0,63364.0,0.56539948]
[1728780016832,0.002821,63365.0,63364.0,0.54266621]
[1728780017050,0.002821,63365.0,63364.0,0.56539929]
[1728780019866,0.0275435,63365.0,63364.0,0.56539929]
[1728780020604,0.002821,63365.0,63364.0,0.56539929]
[1728780023466,0.02754327,63365.0,63364.0,0.56539929]
[1728780024371,0.02754327,63365.0,63364.0,0.55551513]
[1728780024583,0.02754327,63365.0,63364.0,0.57722181]
[1728780024797,0.02754327,63365.0,63364.0,0.56539891]
[1728780025002,0.02754327,63365.0,63364.0,0.57722181]
[1728780025228,0.02754327,63365.0,63364.0,0.68422181]
[1728780025497,0.23813086,63371.0,63364.0,0.68422181]
[1728780025498,0.23813086,63371.0,63370.0,0.43312231]
[1728780025704,0.26285297,63371.0,63370.0,0.72831455]
[1728780025918,0.02554311,63371.0,63370.0,0.73967629]
[1728780026784,0.02654311,63371.0,63370.0,0.74667629]
[1728780026999,0.02654311,63371.0,63370.0,0.75667629]
[1728780027645,0.02654311,63371.0,63370.0,0.76655936]
[1728780027860,0.02654311,63371.0,63370.0,0.75667629]
[1728780028111,0.02654311,63371.0,63370.0,0.76655936]
[1728780028320,0.02654311,63371.0,63370.0,0.75667629]
[1728780028552,0.02654311,63371.0,63370.0,0.76655932]
[1728780028781,0.001821,63371.0,63370.0,0.76655932]
[1728780031073,0.001821,63371.0,63370.0,0.5703207]
[1728780031307,0.001821,63371.0,63370.0,0.66844001]
[1728780031542,0.001821,63371.0,63370.0,0.64570806]
[1728780031777,0.02654217,63371.0,63370.0,0.66576994]
[1728780032015,0.02654217,63371.0,63370.0,0.67395921]
[1728780032502,0.02654217,63371.0,63370.0,0.66674516]
[1728780033933,0.04134794,63371.0,63370.0,0.66674516]
[1728780035289,0.04134768,63371.0,63370.0,0.6667455]
[1728780037475,0.01662651,63371.0,63370.0,0.6667455]
[1728780039677,0.01662579,63371.0,63370.0,0.65389733]
[1728780039898,0.001821,63371.0,63370.0,0.65389733]
[1728780040136,0.01662579,63371.0,63370.0,0.66674534]
[1728780040586,0.04134698,63371.0,63370.0,0.66674534]
[1728780042566,0.001821,63371.0,63370.0,0.65389733]
[1728780042786,0.01662653,63371.0,63370.0,0.66674541]
[1728780043000,0.001821,63371.0,63370.0,0.66674541]
[1728780043237,0.01662656,63371.0,63370.0,0.66674541]
[1728780045257,0.01662656,63371.0,63370.0,0.76486472]
[1728780046154,0.001821,63371.0,63370.0,0.75201664]
[1728780046381,0.001821,63371.0,63370.0,0.76486426]
[1728780046815,0.001821,63371.0,63370.0,0.77474705]
[1728780048358,0.000821,63377.0,63376.0,0.37820731]
[1728780048606,0.000821,63377.0,63376.0,0.56216173]
[1728780048853,0.000821,63377.0,63376.0,0.58167013]
[1728780049074,0.000821,63377.0,63376.0,0.66057013]
[1728780049521,0.000821,63377.0,63376.0,0.66357013]
[1728780050206,0.000821,63377.0,63376.0,0.66057013]
[1728780050643,0.000821,63377.0,63376.0,0.67257013]
[1728780051968,0.01562899,63377.0,63376.0,0.67257013]
[1728780052636,0.04134813,63377.0,63376.0,0.68257013]
[1728780052861,0.04134813,63377.0,63376.0,0.58445082]
[1728780053113,0.04134813,63377.0,63376.0,0.68257013]
[1728780053571,0.04134889,63377.0,63376.0,0.68257013]
[1728780057053,0.04134996,63377.0,63376.0,0.68256912]
[1728780057282,0.04134996,63377.0,63376.0,0.68985249]
[1728780057515,0.01663082,63377.0,63376.0,0.68985249]
[1728780060515,0.02653996,63377.0,63376.0,0.68985249]
[1728780060734,0.04134762,63377.0,63376.0,0.68491065]
[1728780060965,0.04134814,63377.0,63376.0,0.68985164]
[1728780062377,0.04134814,63377.0,63376.0,0.38324896]
[1728780062612,0.04134814,63377.0,63376.0,0.37336698]
[1728780065335,0.04034814,63377.0,63376.0,0.36336698]
[1728780065561,0.04034814,63377.0,63376.0,0.35136698]
[1728780066032,0.04034814,63377.0,63376.0,0.35436698]
[1728780066255,0.04034814,63377.0,63376.0,0.35136698]
[1728780066484,0.04034814,63377.0,63376.0,0.35536698]
[1728780066704,0.04034861,63377.0,63376.0,0.36236852]
[1728780066928,0.04034861,63377.0,63376.0,0.35536852]
[1728780067398,0.04034861,63377.0,63376.0,0.36236852]
[1728780068351,0.04034861,63377.0,63376.0,0.35836852]
[1728780068587,0.04034861,63377.0,63376.0,0.36336852]
[1728780068810,0.02553996,63377.0,63376.0,0.36336852]
[1728780069042,0.04034857,63377.0,63376.0,0.36336852]
[1728780070219,0.02553996,63377.0,63376.0,0.36336828]
[1728780070707,0.02553996,63377.0,63376.0,0.38636828]
[1728780070941,0.000821,63377.0,63376.0,0.39625087]
[1728780073258,0.01562793,63377.0,63376.0,0.39624926]
[1728780073953,0.04034704,63377.0,63376.0,0.39624938]
[1728780074175,0.04034704,63377.0,63376.0,0.49436869]
[1728780075300,0.02554013,63377.0,63376.0,0.49436869]
[1728780077584,0.000821,63377.0,63376.0,0.47163972]
[1728780077797,0.000821,63377.0,63376.0,0.49436942]
[1728780080558,0.02553985,63377.0,63376.0,0.49436942]
[1728780080993,0.02553985,63377.0,63376.0,0.47163972]
[1728780081216,0.02553985,63377.0,63376.0,0.49436939]
[1728780087921,0.02553985,63377.0,63376.0,0.48936939]
[1728780088146,0.02553985,63377.0,63376.0,0.48236939]
[1728780088361,0.02653985,63377.0,63376.0,0.49236939]
[1728780088804,0.02653985,63377.0,63376.0,0.50636939]
[1728780089684,0.02553985,63377.0,63376.0,0.49636939]
[1728780090133,0.02553985,63377.0,63376.0,0.50636939]
[1728780091732,0.02553985,63377.0,63376.0,0.51819661]
[1728780091951,0.02553985,63377.0,63376.0,0.51819549]
[1728780094406,0.000821,63377.0,63376.0,0.50636861]
[1728780095363,0.000821,63377.0,63376.0,0.50636901]
[1728780095628,0.000821,63377.0,63376.0,0.49236901]
[1728780096109,0.000821,63377.0,63376.0,0.50436901]
[1728780096352,0.000821,63377.0,63376.0,0.48236901]
[1728780096597,0.000821,63377.0,63376.0,0.49636901]
[1728780097069,0.000821,63377.0,63376.0,0.50619817]
[1728780097302,0.02653991,63377.0,63376.0,0.51419817]
[1728780097519,0.02653991,63377.0,63376.0,0.50236901]
[1728780098673,0.001821,63377.0,63376.0,0.50236901]
[1728780099074,0.001821,63377.0,63376.0,0.47963972]
[1728780099307,0.001821,63377.0,63376.0,0.50236846]
[1728780099540,0.01663585,63377.0,63376.0,0.50236846]
[1728780100420,0.001821,63377.0,63376.0,0.47963972]
[1728780101706,0.02653974,63377.0,63376.0,0.49147536]
[1728780101924,0.02653974,63377.0,63376.0,0.50236916]
[1728780102364,0.02653974,63377.0,63376.0,0.47963972]
[1728780104751,0.02653974,63377.0,63376.0,0.49147564]
[1728780105873,0.02653974,63377.0,63376.0,0.50135794]
[1728780106129,0.02653974,63377.0,63376.0,0.51420511]
[1728780107685,0.001821,63377.0,63376.0,0.51420511]
[1728780108104,0.001821,63377.0,63376.0,0.50236901]
[1728780108524,0.001821,63377.0,63376.0,0.51420623]
[1728780110538,0.02653961,63377.0,63376.0,0.51420623]
[1728780111413,0.02553961,63377.0,63376.0,0.50620623]
[1728780111655,0.02553961,63377.0,63376.0,0.5062065]
[1728780111863,0.02553961,63377.0,63376.0,0.5102065]
[1728780112084,0.02553961,63377.0,63376.0,0.4982065]
[1728780112322,0.02553961,63377.0,63376.0,0.5032065]
[1728780112532,0.02553961,63377.0,63376.0,0.5082065]
[1728780112738,0.02553961,63377.0,63376.0,0.5172065]
[1728780113873,0.02553961,63377.0,63376.0,0.6124065]
[1728780115299,0.02553961,63377.0,63376.0,0.58967694]
[1728780115556,0.02553961,63377.0,63376.0,0.61240586]
[1728780117726,0.000821,63377.0,63376.0,0.61240586]
[1728780119100,0.000821,63377.0,63376.0,0.61240254]
[1728780120618,0.02553922,63377.0,63376.0,0.61240254]
[1728780121501,0.02553922,63377.0,63376.0,0.60056788]
[1728780121722,0.02553922,63377.0,63376.0,0.61240216]
[1728780122395,0.02553922,63377.0,63376.0,0.60740216]
[1728780122637,0.02553922,63377.0,63376.0,0.58940216]
[1728780122860,0.02653922,63377.0,63376.0,0.60940216]
[1728780123347,0.02653922,63377.0,63376.0,0.59540216]
[1728780123799,0.02653922,63377.0,63376.0,0.41608285]
[1728780124021,0.02653922,63377.0,63376.0,0.4160837]
[1728780124521,0.02653922,63377.0,63376.0,0.40424857]
[1728780124746,0.02653922,63377.0,63376.0,0.39824857]
[1728780124747,0.02553922,63377.0,63376.0,0.39824857]
[1728780125193,0.02553922,63377.0,63376.0,0.41225011]
[1728780127568,0.000821,63377.0,63376.0,0.41225011]
[1728780128685,0.000821,63377.0,63376.0,0.38952041]
[1728780128914,0.000821,63377.0,63376.0,0.42408419]
[1728780129863,0.000821,63377.0,63376.0,0.42408403]
[1728780130089,0.000821,63377.0,63376.0,0.41224975]
[1728780130460,0.02553971,63377.0,63376.0,0.41224975]
[1728780131747,0.02553971,63377.0,63376.0,0.42408337]
[1728780132428,0.02553971,63377.0,63376.0,0.39824975]
[1728780132837,0.02553971,63377.0,63376.0,0.38424975]
[1728780133041,0.02553971,63377.0,63376.0,0.39424975]
[1728780133418,0.02553971,63377.0,63376.0,0.40824975]
[1728780133653,0.02553971,63377.0,63376.0,0.39424975]
[1728780134302,0.02553971,63377.0,63376.0,0.40608203]
[1728780134516,0.02553971,63377.0,63376.0,0.39608203]
[1728780134716,0.02553971,63377.0,63376.0,0.40608203]
[1728780134919,0.02553971,63377.0,63376.0,0.42008203]
[1728780137583,0.000821,63377.0,63376.0,0.42008203]
[1728780139487,0.000821,63377.0,63376.0,0.42008168]
[1728780139693,0.000821,63377.0,63376.0,0.42008186]
[1728780140539,0.02553939,63377.0,63376.0,0.42008186]
[1728780142051,0.02553939,63377.0,63376.0,0.4082494]
[1728780142488,0.02553939,63377.0,63376.0,0.4200826]
[1728780143117,0.02553939,63377.0,63376.0,0.39735361]
[1728780143330,0.02553939,63377.0,63376.0,0.40330835]
[1728780143581,0.02553939,63377.0,63376.0,0.40824944]
[1728780143751,0.02553939,63377.0,63376.0,0.42008266]
[1728780147708,0.000821,63377.0,63376.0,0.42008266]
[1728780150726,0.02553937,63377.0,63376.0,0.42008266]
[1728780152473,0.02553937,63377.0,63376.0,0.41008266]
[1728780152687,0.02553937,63377.0,63376.0,0.39608266]
[1728780153113,0.02553937,63377.0,63376.0,0.41008266]
[1728780153355,0.02553937,63377.0,63376.0,0.42008266]
[1728780154725,0.02553937,63377.0,63376.0,0.41008266]
[1728780154935,0.02553937,63377.0,63376.0,0.42108266]
[1728780157697,0.02553937,63377.0,63376.0,0.40924916]
[1728780157905,0.02553937,63377.0,63376.0,0.42108536]
[1728780163142,0.000821,63377.0,63376.0,0.70698536]
[1728780163364,0.000221,63379.0,63378.0,0.465683]
[1728780163576,0.000221,63379.0,63378.0,0.75959127]
[1728780163797,0.000221,63379.0,63378.0,0.77818986]
[1728780164498,0.000221,63379.0,63378.0,0.84918134]
[1728780164720,0.000221,63379.0,63378.0,1.04781434]
[1728780164934,0.000221,63379.0,63378.0,0.86131491]
[1728780165153,0.000221,63379.0,63378.0,0.87314093]
[1728780165362,0.000221,63379.0,63378.0,0.78104355]
[1728780165589,0.000221,63379.0,63378.0,0.78917968]
[1728780165804,0.000221,63379.0,63378.0,0.87414093]
[1728780166017,0.000221,63379.0,63378.0,0.97226024]
[1728780166460,0.000221,63379.0,63378.0,1.14684364]
[1728780166905,0.000221,63379.0,63378.0,1.14683959]
[1728780167346,0.000221,63379.0,63378.0,0.96043422]
[1728780167556,0.000221,63379.0,63378.0,0.97608932]
[1728780168617,0.000221,63379.0,63378.0,0.95336254]
[1728780168829,0.000221,63379.0,63378.0,0.97608877]
[1728780169320,0.000221,63379.0,63378.0,0.91859267]
[1728780170619,0.000221,63379.0,63378.0,0.90759267]
[1728780170827,0.000221,63379.0,63378.0,0.91045533]
[1728780171034,0.000221,63379.0,63378.0,0.88086644]
[1728780171241,0.000221,63379.0,63378.0,0.90645522]
[1728780171461,0.000221,63379.0,63378.0,0.92045522]
[1728780172103,0.000221,63379.0,63378.0,0.91045522]
[1728780172798,0.000221,63379.0,63378.0,0.91755602]
[1728780172977,0.000221,63379.0,63378.0,0.98560982]
[1728780173220,0.000221,63379.0,63378.0,0.91755413]
[1728780173447,0.000221,63379.0,63378.0,0.92755413]
[1728780173682,0.02493638,63379.0,63378.0,0.92755413]
[1728780173901,0.02493638,63379.0,63378.0,0.97481985]
[1728780174136,0.02493638,63379.0,63378.0,0.92755413]
[1728780174357,0.02493638,63379.0,63378.0,1.09914932]
[1728780174564,0.02493638,63379.0,63378.0,1.08926835]
[1728780174788,0.02493638,63379.0,63378.0,1.09914881]
[1728780175015,0.02493638,63379.0,63378.0,1.17203222]
[1728780175235,0.02493638,63379.0,63378.0,1.09914881]
[1728780175483,0.02493638,63379.0,63378.0,1.1700273]
[1728780175699,0.02493638,63379.0,63378.0,1.1720273]
[1728780175929,0.02493638,63379.0,63378.0,1.1700273]
[1728780176145,0.02493638,63379.0,63378.0,0.92469296]
[1728780176582,0.02493638,63379.0,63378.0,0.99557145]
[1728780177437,0.02493638,63379.0,63378.0,0.92469296]
[1728780177621,0.02493638,63379.0,63378.0,0.99557145]
[1728780178093,0.02493638,63379.0,63378.0,0.92469296]
[1728780178310,0.000821,63380.0,63379.0,0.28578]
[1728780178530,0.000821,63380.0,63379.0,0.48155288]
[1728780178762,0.000821,63380.0,63379.0,0.49019552]
[1728780180333,0.000821,63380.0,63379.0,0.49919552]
[1728780180971,0.000821,63380.0,63379.0,0.51219552]
[1728780182691,0.000821,63380.0,63379.0,0.50319552]
[1728780183138,0.000821,63380.0,63379.0,0.51219552]